fUSD/lending_fUSD_20241208
["ID","MTS","AMOUNT","RATE_DAILY","PERIOD"]
[344620010,1733621440742,-500.0,0.00019999,2]
[344620011,1733621440751,-500.0,0.00019999,2]
[344620012,1733621440762,-500.0,0.00019999,2]
[344620013,1733621440771,-500.0,0.00019999,2]
[344620014,1733621440781,-500.0,0.00019999,2]
[344620015,1733621440790,-500.0,0.00019999,2]
[344620016,1733621440800,-500.0,0.00019999,2]
[344620017,1733621440811,-500.0,0.00019999,2]
[344620018,1733621440821,-500.0,0.00019999,2]
[344620019,1733621440831,-500.0,0.00019999,2]
[344620020,1733621440840,-500.0,0.00019999,2]
[344620021,1733621440850,-500.0,0.00019999,2]
[344620022,1733621440860,-500.0,0.00019999,2]
[344620023,1733621440870,-500.0,0.00019999,2]
[344620024,1733621440879,-500.0,0.00019999,2]
[344620025,1733621440889,-500.0,0.00019999,2]
[344620026,1733621440898,-500.0,0.00019999,2]
[344620027,1733621440913,-500.0,0.00019999,2]
[344620028,1733621440923,-500.0,0.00019999,2]
[344620029,1733621440932,-500.0,0.00019999,2]
[344620030,1733621440942,-500.0,0.00019999,2]
[344620031,1733621440951,-177.2,0.00019999,2]
[344620032,1733621440960,-500.0,0.00019999,2]
[344620033,1733621440970,-551.5691288,0.00019999,2]
[344620034,1733621440979,-500.0,0.00019999,2]
[344620035,1733621440988,-500.0,0.00019999,2]
[344620036,1733621440998,-500.0,0.00019999,2]
[344620037,1733621441007,-500.0,0.00019999,2]
[344620038,1733621441017,-500.0,0.00019999,2]
[344620039,1733621441027,-500.0,0.00019999,2]
[344620040,1733621441036,-298.98,0.00019999,2]
[344620041,1733621441045,-500.0,0.00019999,2]
[344620042,1733621441054,-500.0,0.00019999,2]
[344620043,1733621441063,-500.0,0.00019999,2]
[344620044,1733621441073,-500.0,0.00019999,2]
[344620045,1733621441082,-500.0,0.00019999,2]
[344620046,1733621441091,-500.0,0.00019999,2]
[344620047,1733621441100,-500.0,0.00019999,2]
[344620048,1733621441110,-527.7,0.00019999,2]
[344620049,1733621441119,-500.0,0.00019999,2]
[344620050,1733621441129,-500.0,0.00019999,2]
[344620051,1733621441138,-500.0,0.00019999,2]
[344620052,1733621441148,-500.0,0.00019999,2]
[344620053,1733621441158,-500.0,0.00019999,2]
[344620054,1733621441168,-500.0,0.00019999,2]
[344620055,1733621441177,-500.0,0.00019999,2]
[344620056,1733621441187,-282.7,0.00019999,2]
[344620057,1733621441196,-500.0,0.00019999,2]
[344620058,1733621441205,-500.0,0.00019999,2]
[344620059,1733621441215,-500.0,0.00019999,2]
[344620060,1733621441224,-500.0,0.00019999,2]
[344620061,1733621441233,-500.0,0.00019999,2]
[344620062,1733621441242,-500.0,0.00019999,2]
[344620063,1733621441252,-500.0,0.00019999,2]
[344620064,1733621441261,-4469.18,0.00019999,2]
[344620065,1733621441271,-4469.18,0.00019999,2]
[344620066,1733621441280,-4469.18,0.00019999,2]
[344620067,1733621441289,-4469.18,0.00019999,2]
[344620068,1733621441298,-4469.18,0.00019999,2]
[344620069,1733621441311,-4469.18,0.00019999,2]
[344620070,1733621441320,-4469.18,0.00019999,2]
[344620071,1733621441329,-4469.18,0.00019999,2]
[344620072,1733621441339,-4469.18,0.00019999,2]
[344620073,1733621441349,-4469.18,0.00019999,2]
[344620074,1733621441358,-4469.18,0.00019999,2]
[344620075,1733621441368,-4469.18,0.00019999,2]
[344620076,1733621441381,-4469.18,0.00019999,2]
[344620077,1733621441390,-4469.18,0.00019999,2]
[344620078,1733621441400,-4469.18,0.00019999,2]
[344620079,1733621441412,-4469.18,0.00019999,2]
[344620080,1733621441422,-4469.18,0.00019999,2]
[344620081,1733621441431,-4469.18,0.00019999,2]
[344620082,1733621441441,-4469.18,0.00019999,2]
[344620083,1733621441451,-4469.18,0.00019999,2]
[344620084,1733621441461,-4469.18,0.00019999,2]
[344620085,1733621441470,-4469.18,0.00019999,2]
[344620086,1733621441479,-4469.38,0.00019999,2]
[344620087,1733621441489,-499.34497785,0.00019999,2]
[344620088,1733621441498,-647.0,0.00019999,2]
[344620089,1733621441507,-20000.0,0.0002,2]
[344620090,1733621441517,-1563816.66817574,0.0002,3]
[344620091,1733621441526,-8799.07281861,0.0002,2]
[344620092,1733621441535,-58822.58147156,0.0002,3]
[344620093,1733621441545,-19975078.41874644,0.0002,2]
[344620094,1733621441869,-359.27795714,0.00019998,2]
[344620095,1733621441878,-3.65110558,0.0002,2]
[344620096,1733621441890,-400.46499999,0.0002,2]
[344620097,1733621441904,-1903.25249385,0.0002,2]
[344620098,1733621441919,-35997.6767145,0.0002,2]
[344620099,1733621441930,-34990.16113647,0.0002,2]
[344620100,1733621441941,-300.0,0.0002,2]
[344620106,1733621443628,-3172.63252524,0.0002,2]
[344620107,1733621443642,-2588.49998,0.0002,2]
[344620108,1733621443654,-2003.4,0.0002,2]
[344620110,1733621446455,-531.0,0.00019999,2]
[344620111,1733621446465,-6697.599998,0.0002,2]
[344620112,1733621446476,-1361.90000849,0.0002,2]
[344620113,1733621446608,-951.0,0.0002,2]
[344620114,1733621446771,-4833.79971318,0.0002,2]
[344620115,1733621446782,-17996.03718,0.0002,2]
[344620116,1733621446793,-20088.7100217,0.0002,2]
[344620117,1733621446804,-8118.0518,0.0002,2]
[344620118,1733621446815,-39987.17226742,0.0002,2]
[344620121,1733621900193,378415.80072989,0.000211,120]
[344620122,1733621920603,150.0,0.000125,2]
[344620123,1733622021501,3600.0,0.00021,120]
[344620137,1733622631782,-450.0,0.00013,2]
[344620138,1733622631792,-289.47033601,0.000149,2]
[344620139,1733622631803,-200.0,0.00014956,2]
[344620140,1733622631813,-200.0,0.00014959,2]
[344620141,1733622631823,-200.0,0.00014973,2]
[344620142,1733622631834,-200.0,0.00014973,2]
[344620143,1733622631844,-200.0,0.00014983,2]
[344620144,1733622631854,-500.0,0.00015,2]
[344620145,1733622631864,-360.56,0.00016799,2]
[344620146,1733622631874,-550.0,0.00017,2]
[344620147,1733622631883,-2230.86025771,0.00017,2]
[344620148,1733622631892,-500.0,0.00017096,2]
[344620149,1733622631903,-38.85940178,0.000175,10]
[344620150,1733622631920,-17427.13916805,0.000175,10]
[344620151,1733622631989,-21998.48677768,0.000175,10]
[344620152,1733622632001,-1716.85,0.000175,10]
[344620153,1733622632183,-2018.19632871,0.000175,10]
[344620168,1733622638122,-13451.0556719,0.000175,10]
[344620169,1733622638134,-1004.5516002,0.000175,10]
[344620170,1733622638145,-910798.60289761,0.000175,10]
[344620171,1733622638155,-6402.0,0.0001863,2]
[344620172,1733622638164,-250.0,0.00018687,2]
[344620173,1733622638173,-1500.0,0.00018748,2]
[344620174,1733622638184,-242.31,0.00018748,2]
[344620175,1733622638193,-23900.0,0.00018769,2]
[344620176,1733622638202,-13859.708774,0.00019,2]
[344620177,1733622638212,-3636.6847361,0.00019,20]
[344620178,1733622638221,-229.785,0.00019,2]
[344620179,1733622638230,-600.0,0.00019,2]
[344620180,1733622638239,-1000.0,0.00019056,2]
[344620181,1733622638248,-360.56,0.00019063,2]
[344620182,1733622638258,-452.8,0.000191,2]
[344620183,1733622638267,-1944.05,0.00019178,2]
[344620184,1733622638275,-35848.0,0.00019211,2]
[344620185,1733622638285,-1130.79,0.00019309,30]
[344620186,1733622638294,-13834.29,0.00019406,2]
[344620187,1733622638303,-1000.0,0.000195,14]
[344620188,1733622638312,-2011.66,0.00019513,2]
[344620189,1733622638321,-3770.493,0.00019513,2]
[344620192,1733622638330,-3541.198,0.00019513,2]
[344620194,1733622638340,-5979.169,0.00019513,2]
[344620196,1733622638349,-10228.601,0.00019513,2]
[344620198,1733622638358,-192.1,0.00019535,2]
[344620200,1733622638367,-830.0,0.000196,14]
[344620202,1733622638376,-25885.58357007,0.000196,2]
[344620204,1733622638385,-2370.0,0.000196,2]
[344620206,1733622638394,-388.0595749,0.00019699,2]
[344620208,1733622638404,-270.92218833,0.000197,2]
[344620210,1733622638413,-1000.0,0.000197,14]
[344620212,1733622638422,-388.05957483,0.00019721,2]
[344620214,1733622638433,-388.05957483,0.00019744,2]
[344620216,1733622638442,-388.05957483,0.00019766,2]
[344620218,1733622638451,-388.05957483,0.00019788,2]
[344620220,1733622638461,-500.0,0.00019799,2]
[344620222,1733622638470,-2418.17,0.00019799,2]
[344620224,1733622638479,-564.03,0.00019799,2]
[344620226,1733622638488,-500.0,0.00019799,2]
[344620228,1733622638498,-500.0,0.00019799,2]
[344620230,1733622638507,-3000.0,0.00019799,2]
[344620232,1733622638517,-1486.46,0.00019799,2]
[344620234,1733622638526,-1000.0,0.000198,14]
[344620236,1733622638535,-267.63651751,0.000198,2]
[344620238,1733622638545,-1001.18091689,0.00019809,2]
[344620240,1733622638554,-27420.49484175,0.0001981,2]
[344620242,1733622638563,-388.05957483,0.00019811,2]
[344620244,1733622638572,-388.05957483,0.00019833,2]
[344620246,1733622638581,-388.05957483,0.00019855,2]
[344620248,1733622638590,-173.70409501,0.00019866,7]
[344620250,1733622638600,-388.05957483,0.00019878,2]
[344620252,1733622638609,-2388.647,0.00019898,2]
[344620254,1733622638619,-200.30266414,0.00019898,2]
[344620256,1733622638628,-6123.1581,0.00019899,2]
[344620258,1733622638638,-2549.1468,0.00019899,2]
[344620260,1733622638647,-25580.023,0.00019899,2]
[344620262,1733622638656,-152.69,0.000199,2]
[344620264,1733622638665,-4808.676,0.000199,2]
[344620266,1733622638676,-220.0,0.000199,2]
[344620268,1733622638686,-1000.0,0.000199,14]
[344620270,1733622638695,-388.05957483,0.000199,2]
[344620272,1733622638704,-837.0,0.0001997,10]
[344620274,1733622638713,-316.0,0.00019973,2]
[344620276,1733622638722,-502.14701361,0.00019973,2]
[344620278,1733622638731,-6312.01528174,0.0001999,2]
[344620280,1733622638740,-231.65667201,0.00019995,2]
[344620282,1733622638753,-279.69608604,0.00019995,2]
[344620284,1733622638762,-546.38415345,0.00019995,2]
[344620286,1733622638772,-521.10067045,0.00019995,2]
[344620288,1733622638782,-561.99922197,0.00019995,2]
[344620290,1733622638791,-549.30144447,0.00019995,2]
[344620292,1733622638802,-611.39479132,0.00019995,2]
[344620294,1733622638812,-549.5926422,0.00019995,2]
[344620296,1733622638821,-500.0,0.00019995,2]
[344620298,1733622638831,-591.20212469,0.00019995,2]
[344620300,1733622638840,-500.0,0.00019995,2]
[344620302,1733622638849,-7625.46,0.00019995,2]
[344620304,1733622638859,-589.23931321,0.00019995,2]
[344620306,1733622638868,-614.52940943,0.00019995,2]
[344620307,1733622638877,-249.23913737,0.00019995,2]
[344620308,1733622638887,-166.63497084,0.00019995,2]
[344620310,1733622638896,-336.0382718,0.00019996,2]
[344620312,1733622638905,-4017.6627315,0.00019996,2]
[344620314,1733622638914,-3766.6432477,0.00019996,2]
[344620316,1733622638923,-9947.1028817,0.00019996,2]
[344620318,1733622638933,-500.0,0.00019998,2]
[344620320,1733622638942,-500.0,0.00019998,2]
[344620322,1733622638951,-2418.17,0.00019998,2]
[344620323,1733622638960,-564.03,0.00019998,2]
[344620325,1733622638969,-500.0,0.00019998,2]
[344620327,1733622638978,-500.0,0.00019998,2]
[344620329,1733622638987,-3000.0,0.00019998,2]
[344620330,1733622638997,-1486.46,0.00019998,2]
[344620331,1733622639007,-500.0,0.00019998,2]
[344620332,1733622639016,-500.0,0.00019998,2]
[344620333,1733622639025,-500.0,0.00019998,2]
[344620334,1733622639034,-500.0,0.00019998,2]
[344620335,1733622639043,-500.0,0.00019998,2]
[344620336,1733622639051,-500.0,0.00019998,2]
[344620337,1733622639061,-541.55609247,0.00019998,2]
[344620338,1733622639070,-500.0,0.00019998,2]
[344620339,1733622639079,-501.09137895,0.00019998,2]
[344620340,1733622639088,-555.94719613,0.00019998,2]
[344620341,1733622639097,-597.86827338,0.00019998,2]
[344620342,1733622639106,-500.0,0.00019998,2]
[344620343,1733622639116,-172.65036168,0.00019998,2]
[344620344,1733622639125,-500.0,0.00019998,2]
[344620345,1733622639134,-500.0,0.00019998,2]
[344620346,1733622639143,-500.0,0.00019998,2]
[344620347,1733622639152,-500.0,0.00019998,2]
[344620348,1733622639161,-1999.0,0.00019998,3]
[344620349,1733622639170,-1999.0,0.00019998,3]
[344620350,1733622639180,-1999.0,0.00019998,3]
[344620351,1733622639189,-1999.0,0.00019998,3]
[344620352,1733622639198,-1999.0,0.00019998,3]
[344620353,1733622639207,-1999.0,0.00019998,3]
[344620354,1733622639216,-1999.0,0.00019998,3]
[344620355,1733622639225,-1999.0,0.00019998,3]
[344620356,1733622639235,-1999.0,0.00019998,3]
[344620357,1733622639244,-1999.0,0.00019998,3]
[344620358,1733622639253,-500.0,0.00019998,2]
[344620359,1733622639262,-1999.0,0.00019998,2]
[344620360,1733622639271,-1999.0,0.00019998,2]
[344620361,1733622639280,-1999.0,0.00019998,2]
[344620362,1733622639290,-1999.0,0.00019998,2]
[344620363,1733622639299,-1999.0,0.00019998,2]
[344620364,1733622639309,-1999.0,0.00019998,2]
[344620365,1733622639319,-1999.0,0.00019998,2]
[344620366,1733622639328,-1999.0,0.00019998,2]
[344620367,1733622639337,-1999.0,0.00019998,2]
[344620368,1733622639346,-1999.0,0.00019998,2]
[344620369,1733622639355,-4070.29,0.00019998,2]
[344620370,1733622639364,-1999.0,0.00019998,2]
[344620371,1733622639374,-4070.29,0.00019998,2]
[344620372,1733622639383,-1999.0,0.00019998,2]
[344620373,1733622639392,-1999.0,0.00019998,3]
[344620374,1733622639401,-509.86346308,0.00019998,2]
[344620375,1733622639410,-502.63741713,0.00019998,2]
[344620376,1733622639420,-508.2067118,0.00019998,2]
[344620377,1733622639430,-591.2831393,0.00019998,2]
[344620378,1733622639440,-503.03605162,0.00019998,2]
[344620379,1733622639449,-500.0,0.00019998,2]
[344620380,1733622639458,-576.01868698,0.00019998,2]
[344620381,1733622639467,-571.48816542,0.00019998,2]
[344620382,1733622639477,-500.0,0.00019998,2]
[344620383,1733622639486,-504.07710138,0.00019998,2]
[344620384,1733622639494,-506.83836734,0.00019998,2]
[344620385,1733622639503,-4532.21,0.00019998,2]
[344620386,1733622639513,-500.0,0.00019998,2]
[344620387,1733622639522,-503.68826935,0.00019998,2]
[344620388,1733622639531,-512.76748671,0.00019998,2]
[344620389,1733622639539,-500.0,0.00019998,2]
[344620390,1733622639549,-643.79928965,0.00019998,2]
[344620391,1733622639558,-514.31924185,0.00019998,2]
[344620392,1733622639568,-500.0,0.00019998,2]
[344620393,1733622639577,-7625.46,0.00019998,2]
[344620394,1733622639586,-1212.57124183,0.00019998,2]
[344620395,1733622639595,-518.05355017,0.00019998,2]
[344620396,1733622639605,-502.39968939,0.00019998,2]
[344620397,1733622639614,-1031.79766918,0.00019998,2]
[344620398,1733622639624,-502.90437198,0.00019998,2]
[344620399,1733622639633,-503.39346197,0.00019998,2]
[344620400,1733622639642,-505.0014343,0.00019998,2]
[344620401,1733622639652,-500.0,0.00019998,2]
[344620402,1733622639661,-502.16803488,0.00019998,2]
[344620403,1733622639670,-500.0,0.00019999,2]
[344620404,1733622639680,-500.0,0.00019999,2]
[344620405,1733622639689,-504.56720976,0.00019999,2]
[344620408,1733622639699,-500.0,0.00019999,2]
[344620410,1733622639708,-500.0,0.00019999,2]
[344620412,1733622639717,-500.0,0.00019999,2]
[344620413,1733622639726,-500.0,0.00019999,2]
[344620414,1733622639735,-500.0,0.00019999,2]
[344620415,1733622639744,-500.0,0.00019999,2]
[344620416,1733622639756,-500.0,0.00019999,2]
[344620417,1733622639765,-500.0,0.00019999,2]
[344620418,1733622639774,-500.0,0.00019999,2]
[344620419,1733622639784,-500.0,0.00019999,2]
[344620420,1733622639795,-500.0,0.00019999,2]
[344620421,1733622639804,-453.75840117,0.00019999,2]
[344620422,1733622639813,-2418.17,0.00019999,2]
[344620423,1733622639823,-2418.17,0.00019999,2]
[344620424,1733622639833,-2418.17,0.00019999,2]
[344620425,1733622639843,-2418.17,0.00019999,2]
[344620426,1733622639853,-2418.17,0.00019999,2]
[344620427,1733622639863,-2418.17,0.00019999,2]
[344620428,1733622639872,-2418.17,0.00019999,2]
[344620429,1733622639881,-2418.17,0.00019999,2]
[344620430,1733622639890,-2418.17,0.00019999,2]
[344620431,1733622639899,-2418.17,0.00019999,2]
[344620432,1733622639909,-2418.17,0.00019999,2]
[344620433,1733622639919,-2418.17,0.00019999,2]
[344620434,1733622639930,-2418.17,0.00019999,2]
[344620435,1733622639940,-2418.17,0.00019999,2]
[344620436,1733622639949,-2418.17,0.00019999,2]
[344620437,1733622639958,-2418.17,0.00019999,2]
[344620438,1733622639967,-2418.17,0.00019999,2]
[344620439,1733622640144,-2418.17,0.00019999,2]
[344620440,1733622640154,-2418.17,0.00019999,2]
[344620441,1733622640163,-2418.17,0.00019999,2]
[344620443,1733622640172,-2418.17,0.00019999,2]
[344620445,1733622640184,-2418.38789454,0.00019999,2]
[344620447,1733622640193,-564.03,0.00019999,2]
[344620449,1733622640202,-564.03,0.00019999,2]
[344620451,1733622640212,-564.03,0.00019999,2]
[344620453,1733622640221,-564.03,0.00019999,2]
[344620455,1733622640230,-564.03,0.00019999,2]
[344620457,1733622640239,-564.03,0.00019999,2]
[344620459,1733622640248,-564.03,0.00019999,2]
[344620461,1733622640258,-564.03,0.00019999,2]
[344620463,1733622640266,-564.03,0.00019999,2]
[344620465,1733622640275,-564.03,0.00019999,2]
[344620467,1733622640284,-564.03,0.00019999,2]
[344620469,1733622640293,-564.03,0.00019999,2]
[344620471,1733622640303,-564.03,0.00019999,2]
[344620473,1733622640312,-564.03,0.00019999,2]
[344620475,1733622640321,-564.03,0.00019999,2]
[344620477,1733622640330,-564.03,0.00019999,2]
[344620479,1733622640339,-564.03,0.00019999,2]
[344620481,1733622640348,-564.03,0.00019999,2]
[344620483,1733622640357,-564.03,0.00019999,2]
[344620485,1733622640366,-564.03,0.00019999,2]
[344620487,1733622640375,-564.03,0.00019999,2]
[344620489,1733622640385,-564.18284493,0.00019999,2]
[344620491,1733622640394,-500.0,0.00019999,2]
[344620493,1733622640403,-500.0,0.00019999,2]
[344620495,1733622640412,-500.0,0.00019999,2]
[344620497,1733622640421,-500.0,0.00019999,2]
[344620499,1733622640438,-500.0,0.00019999,2]
[344620501,1733622640447,-500.0,0.00019999,2]
[344620503,1733622640456,-500.0,0.00019999,2]
[344620505,1733622640466,-500.0,0.00019999,2]
[344620507,1733622640475,-500.0,0.00019999,2]
[344620509,1733622640484,-500.0,0.00019999,2]
[344620511,1733622640493,-500.0,0.00019999,2]
[344620513,1733622640502,-500.0,0.00019999,2]
[344620515,1733622640512,-500.0,0.00019999,2]
[344620517,1733622640520,-500.0,0.00019999,2]
[344620519,1733622640529,-500.0,0.00019999,2]
[344620521,1733622640538,-500.0,0.00019999,2]
[344620523,1733622640547,-500.0,0.00019999,2]
[344620525,1733622640557,-500.0,0.00019999,2]
[344620527,1733622640566,-500.0,0.00019999,2]
[344620529,1733622640576,-500.0,0.00019999,2]
[344620531,1733622640585,-553.67554098,0.00019999,2]
[344620533,1733622640594,-500.0,0.00019999,2]
[344620535,1733622640603,-500.0,0.00019999,2]
[344620537,1733622640612,-500.0,0.00019999,2]
[344620539,1733622640621,-500.0,0.00019999,2]
[344620541,1733622640632,-500.0,0.00019999,2]
[344620543,1733622640641,-500.0,0.00019999,2]
[344620545,1733622640650,-500.0,0.00019999,2]
[344620547,1733622640660,-500.0,0.00019999,2]
[344620549,1733622640672,-500.0,0.00019999,2]
[344620551,1733622640686,-500.0,0.00019999,2]
[344620553,1733622640696,-500.0,0.00019999,2]
[344620555,1733622640705,-500.0,0.00019999,2]
[344620557,1733622640714,-369.00613675,0.00019999,2]
[344620559,1733622640724,-531.82,0.00019999,2]
[344620560,1733622640733,-531.82,0.00019999,2]
[344620562,1733622640744,-531.82,0.00019999,2]
[344620565,1733622640757,-531.82,0.00019999,2]
[344620567,1733622640767,-531.82,0.00019999,2]
[344620569,1733622640776,-531.82,0.00019999,2]
[344620571,1733622640785,-531.82,0.00019999,2]
[344620572,1733622640796,-531.82,0.00019999,2]
[344620575,1733622640806,-531.82,0.00019999,2]
[344620576,1733622640815,-531.82,0.00019999,2]
[344620578,1733622640826,-531.82,0.00019999,2]
[344620580,1733622640836,-531.82,0.00019999,2]
[344620583,1733622640845,-531.82,0.00019999,2]
[344620585,1733622640855,-531.82,0.00019999,2]
[344620587,1733622640864,-531.82,0.00019999,2]
[344620589,1733622640874,-531.82,0.00019999,2]
[344620591,1733622640883,-531.82,0.00019999,2]
[344620593,1733622640892,-531.82,0.00019999,2]
[344620595,1733622640901,-531.82,0.00019999,2]
[344620597,1733622640912,-531.82,0.00019999,2]
[344620599,1733622640921,-531.82,0.00019999,2]
[344620601,1733622640932,-531.82,0.00019999,2]
[344620603,1733622640941,-531.82,0.00019999,2]
[344620605,1733622640950,-532.04157,0.00019999,2]
[344620607,1733622640959,-500.0,0.00019999,2]
[344620609,1733622640968,-500.0,0.00019999,2]
[344620611,1733622640977,-500.0,0.00019999,2]
[344620613,1733622640987,-500.0,0.00019999,2]
[344620615,1733622640996,-560.62922944,0.00019999,2]
[344620617,1733622641004,-500.0,0.00019999,2]
[344620618,1733622641014,-500.0,0.00019999,2]
[344620619,1733622641022,-500.0,0.00019999,2]
[344620620,1733622641032,-500.0,0.00019999,2]
[344620621,1733622641041,-530.99126296,0.00019999,2]
[344620623,1733622641050,-500.0,0.00019999,2]
[344620624,1733622641062,-500.51457047,0.00019999,2]
[344620625,1733622641071,-500.0,0.00019999,2]
[344620626,1733622641081,-500.0,0.00019999,2]
[344620627,1733622641091,-501.18807486,0.00019999,2]
[344620628,1733622641100,-500.0,0.00019999,2]
[344620629,1733622641109,-500.0,0.00019999,2]
[344620630,1733622641119,-499.9950171,0.00019999,2]
[344620631,1733622641128,-500.0,0.00019999,2]
[344620632,1733622641137,-500.0,0.00019999,2]
[344620633,1733622641146,-500.0,0.00019999,2]
[344620634,1733622641155,-387.31583656,0.00019999,2]
[344620635,1733622641164,-2000.0,0.00019999,2]
[344620636,1733622641173,-534.18926019,0.00019999,2]
[344620637,1733622641184,-500.0,0.00019999,2]
[344620638,1733622641193,-248.69510285,0.00019999,2]
[344620639,1733622641202,-2000.0,0.00019999,2]
[344620640,1733622641211,-544.98297403,0.00019999,2]
[344620641,1733622641220,-2000.0,0.00019999,2]
[344620642,1733622641229,-522.08145247,0.00019999,2]
[344620643,1733622641238,-2000.0,0.00019999,2]
[344620644,1733622641247,-523.36007084,0.00019999,2]
[344620645,1733622641256,-514.14953327,0.00019999,2]
[344620646,1733622641265,-531.26711421,0.00019999,2]
[344620647,1733622641274,-546.60303456,0.00019999,2]
[344620648,1733622641283,-517.97397508,0.00019999,2]
[344620649,1733622641293,-515.92593193,0.00019999,2]
[344620650,1733622641302,-528.21052773,0.00019999,2]
[344620651,1733622641311,-3000.0,0.00019999,2]
[344620652,1733622641320,-2820.9546317,0.00019999,2]
[344620653,1733622641329,-521.10878572,0.00019999,2]
[344620654,1733622641338,-153.45391408,0.00019999,2]
[344620655,1733622641348,-1486.46,0.00019999,2]
[344620656,1733622641357,-1486.46,0.00019999,2]
[344620657,1733622641366,-1486.46,0.00019999,2]
[344620658,1733622641375,-1486.46,0.00019999,2]
[344620659,1733622641384,-1486.46,0.00019999,2]
[344620660,1733622641393,-1486.46,0.00019999,2]
[344620661,1733622641402,-1486.46,0.00019999,2]
[344620662,1733622641411,-1486.46,0.00019999,2]
[344620663,1733622641421,-1486.46,0.00019999,2]
[344620664,1733622641433,-1486.46,0.00019999,2]
[344620665,1733622641443,-1486.46,0.00019999,2]
[344620666,1733622641452,-1486.46,0.00019999,2]
[344620667,1733622641461,-1486.46,0.00019999,2]
[344620668,1733622641470,-1486.46,0.00019999,2]
[344620669,1733622641480,-1486.46,0.00019999,2]
[344620670,1733622641490,-1486.46,0.00019999,2]
[344620671,1733622641499,-1486.46,0.00019999,2]
[344620672,1733622641509,-1486.46,0.00019999,2]
[344620673,1733622641518,-1486.46,0.00019999,2]
[344620674,1733622641528,-1486.46,0.00019999,2]
[344620675,1733622641538,-1486.46,0.00019999,2]
[344620676,1733622641548,-1486.52874588,0.00019999,2]
[344620677,1733622641558,-500.0,0.00019999,2]
[344620678,1733622641567,-500.0,0.00019999,2]
[344620679,1733622641577,-500.0,0.00019999,2]
[344620680,1733622641587,-500.0,0.00019999,2]
[344620681,1733622641595,-500.0,0.00019999,2]
[344620682,1733622641605,-500.0,0.00019999,2]
[344620683,1733622641614,-500.0,0.00019999,2]
[344620684,1733622641624,-500.0,0.00019999,2]
[344620685,1733622641633,-500.0,0.00019999,2]
[344620686,1733622641642,-500.0,0.00019999,2]
[344620687,1733622641651,-500.0,0.00019999,2]
[344620688,1733622641660,-500.0,0.00019999,2]
[344620689,1733622641670,-500.0,0.00019999,2]
[344620690,1733622641682,-500.0,0.00019999,2]
[344620691,1733622641691,-500.0,0.00019999,2]
[344620692,1733622641700,-500.0,0.00019999,2]
[344620693,1733622641709,-500.0,0.00019999,2]
[344620694,1733622641718,-563.41039314,0.00019999,2]
[344620695,1733622641728,-176.78078913,0.00019999,2]
[344620696,1733622641737,-157.25298026,0.00019999,2]
[344620697,1733622641747,-556.66520787,0.00019999,2]
[344620698,1733622641759,-500.0,0.00019999,2]
[344620699,1733622641768,-500.0,0.00019999,2]
[344620700,1733622641777,-500.0,0.00019999,2]
[344620701,1733622641786,-500.0,0.00019999,2]
[344620702,1733622641796,-500.0,0.00019999,2]
[344620703,1733622641804,-500.0,0.00019999,2]
[344620704,1733622641813,-500.0,0.00019999,2]
[344620705,1733622641822,-500.0,0.00019999,2]
[344620706,1733622641832,-500.0,0.00019999,2]